Cogmind - Beta 9.1 *** ADVENTURER MODE // 2019.11.05 @ 23:44:25 Player: sideriver81 Result: Self-destructed Performance ------------- Evolutions (1) 500 Regions Visited (5) 1000 Robots Destroyed (28) 140 Value Destroyed (675) 675 Prototype IDs (2) 40 Alien Tech Used (0) 0 Bonus (200) 200 TOTAL SCORE: 2555 Bonus ------- Entered Garrisons 200 Cogmind --------- Core Integrity 166/400 Matter 177/300 Energy 85/100 System Corruption 0% Temperature Cool (6) Location -9/Garrison Parts ------- Power (1) Propulsion (3) Aluminum Leg Utility (3) Large Storage Unit Large Storage Unit Improved Signal Interpreter Weapon (2) Inventory (16) Ion Engine Improved Ion Engine Aluminum Leg Improved Sensor Array Armor Integrity Analyzer Relay Coupler [NC] (33) Relay Coupler [Sentry] (29) Relay Coupler [Sentry] (26) Advanced Beam Cannon Advanced Beam Cannon Improved Assault Rifle Mini Grenade Launcher Mini Grenade Launcher Mini Grenade Launcher Mining Laser Peak State ------------ Power Light Ion Engine Propulsion Aluminum Leg Aluminum Leg Aluminum Leg Utility Large Storage Unit Large Storage Unit Improved Signal Interpreter Weapon Improved Assault Rifle Improved Assault Rifle Inventory Ion Engine Improved Ion Engine Aluminum Leg Aluminum Leg Improved Sensor Array Armor Integrity Analyzer Relay Coupler [NC] Relay Coupler [Sentry] Advanced Beam Cannon Advanced Beam Cannon Improved Assault Rifle Mini Grenade Launcher Mini Grenade Launcher Mini Grenade Launcher Mining Laser [Rating: 17] Favorites ----------- Power Light Ion Engine Engine Light Ion Engine Propulsion Wheel Leg Aluminum Leg Wheel Wheel Utility Large Storage Unit Storage Large Storage Unit Processor Improved Signal Interpreter Weapon Improved Assault Rifle Energy Gun Heavy EM Pulse Gun Energy Cannon Advanced Beam Cannon Ballistic Gun Improved Assault Rifle Launcher Mini Grenade Launcher Special Weapon Mining Laser Build | -11 -10 -10 -9 -9 -9 ------- Run | Scr Mat Min Mat Sto Gar Slots Evolved 2 | . . . 2 . . Power . | . . . . . . Propulsion 1 | . . . 1 . . Utility 1 | . . . 1 . . Weapon . | . . . . . . Parts Attached 26 | 7 5 2 4 2 6 Power 2 | 1 . 1 . . . Engine 2 | 1 . 1 . . . Core . | . . . . . . Reactor . | . . . . . . Propulsion 8 | 2 . 1 1 . 4 Treads . | . . . . . . Leg 4 | . . . . . 4 Wheel 4 | 2 . 1 1 . . Hover . | . . . . . . Flight . | . . . . . . Utility 5 | 2 2 . 1 . . Device . | . . . . . . Storage 4 | 2 2 . . . . Processor 1 | . . . 1 . . Hackware . | . . . . . . Protection . | . . . . . . Artifact . | . . . . . . Weapon 11 | 2 3 . 2 2 2 Energy Gun 2 | . . . 2 . . Energy Cannon 1 | . 1 . . . . Ballistic Gun 6 | 2 1 . . 2 1 Ballistic Cannon . | . . . . . . Launcher 1 | . . . . . 1 Special Weapon 1 | . 1 . . . . Impact Weapon . | . . . . . . Slashing Weapon . | . . . . . . Piercing Weapon . | . . . . . . Special Melee Weapon . | . . . . . . Unidentified Prototypes 2 | . 1 . . 1 . Parts Lost 8 | . . 2 . . 6 Power 2 | . . 1 . . 1 Propulsion 3 | . . . . . 3 Utility . | . . . . . . Weapon 3 | . . 1 . . 2 Highest Loss Streak 5 | . . 2 . . 5 Average Slot Usage (%) 97 | . 100 95 89 100 92 Engine 11 | . 14 12 11 11 8 Leg 2 | . . . . . 19 Wheel 27 | . 28 28 33 33 11 Storage 24 | . 28 28 22 22 22 Processor 5 | . . . 2 11 11 Energy Gun 1 | . . . 9 2 . Energy Cannon 6 | . 8 14 11 . . Ballistic Gun 15 | . 18 11 . 18 19 Naked Turns . | . . . . . . Heaviest Build 42 | 15 41 41 42 42 41 Greatest Support 42 | 20 20 26 42 42 42 Greatest Overweight (x) 10 | 3 2 2 . . 10 Average Overweight (x) . | . 1 1 . . . Largest Inventory Capacity 16 | 8 16 16 16 16 16 Average Capacity 14 | 6 12 16 16 16 16 Most Carried 16 | 8 16 16 16 16 16 Average Carried 13 | 4 10 15 14 15 15 Final Capacity 16 | 8 16 16 16 16 16 Final Carried 16 | 8 16 16 15 16 15 Class Distribution -------------------- 94% | Mutant 5% | Scavenger-Mutant Dominant Class ---------------- Mutant | -10/Materials Mutant | -10/Mines Mutant | -9/Materials Mutant | -9/Storage Mutant | -9/Garrison Resources | -11 -10 -10 -9 -9 -9 ----------- Run | Scr Mat Min Mat Sto Gar Matter Collected 546 | 282 89 62 20 91 2 Remotely . | . . . . . . Salvage Created 699 | 85 152 129 56 209 68 Parts 47 | 8 17 . 4 15 3 Haulers Intercepted . | . . . . . . Recyclers Shooed . | . . . . . . Parts Field Recycled . | . . . . . . Retrieved Matter . | . . . . . . Parts Self-Destructed . | . . . . . . Prevented . | . . . . . . Kills | -11 -10 -10 -9 -9 -9 ------- Run | Scr Mat Min Mat Sto Gar Combat Hostiles Destroyed 22 | . 5 8 1 4 4 Guns 6 | . 1 . . 4 1 Cannons 13 | . 4 8 1 . . AOE 3 | . . . . . 3 Classes Destroyed 9 | 2 4 1 1 1 . Builder 1 | . 1 . . . . Tunneler 1 | 1 . . . . . Recycler 1 | 1 . . . . . Operator 1 | . . . . 1 . Watcher 2 | . 1 . . 1 . Swarmer 6 | . 3 . . . 3 Grunt 7 | . 2 . . 4 1 Sentry 1 | . . . 1 . . Assembled 8 | . . 8 . . . Best Kill Streak 6 | 2 3 6 1 2 3 Combat Bots Only 6 | . 2 6 1 1 3 Max Kills in Single Turn 2 | 1 1 1 1 1 2 Gunslinging . | . . . . . . Exploded 2 | . . . . . 2 Melee . | . . . . . . Uniques/NPCs Destroyed . | . . . . . . Combat | -11 -10 -10 -9 -9 -9 -------- Run | Scr Mat Min Mat Sto Gar Damage Taken 1374 | . 107 283 59 . 925 Core 257 | . . 23 . . 234 Absorbed by Shields . | . . . . . . Core Remaining (%) 95 | 100 . 90 . . . Volleys Fired 59 | 2 12 14 3 9 19 Largest 2 | 2 2 2 2 2 2 Hottest 108 | 40 100 88 108 68 46 Shots Fired 106 | 4 23 28 6 18 27 Gun 77 | 4 13 14 3 18 25 Cannon 26 | . 9 14 3 . . Launcher 2 | . . . . . 2 Special 1 | . 1 . . . . Kinetic 73 | 4 13 14 . 17 25 Thermal 27 | . 10 14 3 . . Explosive 2 | . . . . . 2 Electromagnetic 4 | . . . 3 1 . Robot Hit Streak 23 | 3 5 6 7 8 23 Robot Miss Streak 2 | . 2 2 . 2 1 Penetration Max . | . . . . . . Secondary Targets 1 | . . . . . 1 Max Gunslinging Chain 1 | . . . . . 1 Shots Hit Robots 67 | 3 11 14 6 11 22 Core Hits 34 | 2 7 10 2 6 7 Critical Hits 5 | . 3 1 . . 1 Critical Kills 3 | . 2 1 . . . Critical Parts Destroyed 2 | . 1 . . . 1 Melee Attacks . | . . . . . . Impact . | . . . . . . Slashing . | . . . . . . Piercing . | . . . . . . Sneak Attacks . | . . . . . . Combat Hostiles . | . . . . . . Follow-up Attacks . | . . . . . . Damage Inflicted 1372 | 43 322 261 95 171 480 Guns 612 | 43 27 38 32 171 301 Cannons 428 | . 142 223 63 . . Explosions 332 | . 153 . . . 179 Melee . | . . . . . . Ramming . | . . . . . . Kinetic 562 | 43 27 38 . 153 301 Thermal 513 | . 227 223 63 . . Explosive 247 | . 68 . . . 179 Electromagnetic 50 | . . . 32 18 . Impact . | . . . . . . Slashing . | . . . . . . Piercing . | . . . . . . Highest Corruption . | . . . . . . Average Corruption . | . . . . . . Corruption Purged . | . . . . . . Overload Shots . | . . . . . . Overflow Damage 74 | . 63 . . . 11 Projectiles . | . . . . . . Explosions 74 | . 63 . . . 11 Melee . | . . . . . . Knockbacks . | . . . . . . Impact . | . . . . . . Kinetic . | . . . . . . Secondary . | . . . . . . Self-Inflicted Damage 93 | . 69 . . . 24 Shots 2 | . 1 . . . 1 Rammed . | . . . . . . Targets Rammed . | . . . . . . Kicked . | . . . . . . Crushed . | . . . . . . Highest Temperature 169 | . 108 169 135 . 14 Average Temperature 54 | . 40 63 73 . 5 Received Heat Transfer 561 | . 12 . 27 . 522 Siege Activations . | . . . . . . Robots Corrupted . | . . . . . . Combat Hostiles . | . . . . . . Parts Fried . | . . . . . . Impact Corruptions . | . . . . . . Robots Melted . | . . . . . . Combat Hostiles . | . . . . . . Parts Melted 1 | . . . 1 . . Heat Transferred 827 | . 309 407 111 . . Parts Sabotaged . | . . . . . . Parts Stolen . | . . . . . . Parts Stripped . | . . . . . . Power Chain Reactions . | . . . . . . Missiles Intercepted . | . . . . . . Alert | -11 -10 -10 -9 -9 -9 ------- Run | Scr Mat Min Mat Sto Gar Peak Influence 262 | 10 209 68 45 124 262 Average Influence 67 | 3 97 49 20 43 141 Maximum Alert Level 1 | . 1 . . . 1 Low Security (%) 92 | . . . . . . Level 1 7 | . . . . . . Level 2 . | . . . . . . Level 3 . | . . . . . . Level 4 . | . . . . . . Level 5 . | . . . . . . High Security . | . . . . . . Max Security . | . . . . . . Squads Dispatched 1 | . . . . 1 . Investigation . | . . . . . . Extermination . | . . . . . . Reinforcement 1 | . . . . 1 . Assault . | . . . . . . Garrison . | . . . . . . Intercept . | . . . . . . Construction Impeded . | . . . . . . Haulers Reinforced . | . . . . . . Stealth | -11 -10 -10 -9 -9 -9 --------- Run | Scr Mat Min Mat Sto Gar Distress Signals 4 | . 2 1 . 1 . Communications Jammed . | . . . . . . Distress Signals . | . . . . . . Times Spotted 41 | . 12 10 1 9 9 Peak Tracking Total 5 | . 5 4 2 5 5 Tactical Retreats 4 | . . 2 . 2 . Traps | -11 -10 -10 -9 -9 -9 ------- Run | Scr Mat Min Mat Sto Gar Traps Triggered 1 | . . . . . 1 Indirectly . | . . . . . . Trap Hack Attempts . | . . . . . . Triggered . | . . . . . . Disarmed . | . . . . . . Reprogrammed . | . . . . . . Reused . | . . . . . . Traps Extracted . | . . . . . . Installed . | . . . . . . Triggered . | . . . . . . Machines | -11 -10 -10 -9 -9 -9 ---------- Run | Scr Mat Min Mat Sto Gar Machines Disabled 6 | . 5 . . . 1 Max in Single Turn 4 | . 4 . . . 1 Garrison Relay 1 | . . . . . 1 Machines Sabotaged . | . . . . . . Garrisons Compromised . | . . . . . . Overloaded Fab Kills . | . . . . . . Fab Network Shutdowns . | . . . . . . Hacking | -11 -10 -10 -9 -9 -9 --------- Run | Scr Mat Min Mat Sto Gar Machines Accessed 10 | . 4 . . 6 . Terminals 8 | . 3 . . 5 . Fabricators . | . . . . . . Repair Stations . | . . . . . . Recycling Units 1 | . 1 . . . . Scanalyzers . | . . . . . . Garrison Access 1 | . . . . 1 . Total Hacks 25 | . 8 . . 17 . Successful 14 | . 5 . . 9 . Failed 11 | . 3 . . 8 . Catastrophic 3 | . 1 . . 2 . Database Lockouts . | . . . . . . Manual 18 | . 6 . . 12 . Terminals 23 | . 7 . . 16 . Fabricators . | . . . . . . Repair Stations . | . . . . . . Recycling Units 1 | . 1 . . . . Scanalyzers . | . . . . . . Garrison Access 1 | . . . . 1 . Terminal Hacks 7 | . 2 . . 5 . Open Door 1 | . . . . 1 . Unreport Threat 1 | . . . . 1 . Locate Traps 4 | . 1 . . 3 . Hauler Manifests 1 | . 1 . . . . Fabricator Hacks . | . . . . . . Repair Station Hacks . | . . . . . . Recycling Unit Hacks 1 | . 1 . . . . Report Inventory 1 | . 1 . . . . Scanalyzer . | . . . . . . Garrison Access Hacks 1 | . . . . 1 . Unlock Access 1 | . . . . 1 . Unauthorized Hacks 12 | . 5 . . 7 . Terminals 5 | . 2 . . 3 . Track 5 | . 2 . . 3 . Fabricators . | . . . . . . Repair Stations . | . . . . . . Recycling Units . | . . . . . . Scanalyzers . | . . . . . . Garrison Access . | . . . . . . Data Cores Recovered 1 | . . . . 1 . Used 1 | . . . . 1 . Hacking Detections 7 | . 3 . . 4 . Full Trace Events . | . . . . . . Feedback Events . | . . . . . . Feedback Blocked . | . . . . . . Robot Schematics Acquired . | . . . . . . Robots Built . | . . . . . . Matter . | . . . . . . Time . | . . . . . . Total Robot Build Rating . | . . . . . . Part Schematics Acquired . | . . . . . . Parts Built . | . . . . . . Matter . | . . . . . . Time . | . . . . . . Total Part Build Rating . | . . . . . . Parts Repaired . | . . . . . . Time . | . . . . . . Parts Recycled . | . . . . . . Recycled Matter . | . . . . . . Retrieved Matter . | . . . . . . Retrieved Components . | . . . . . . Parts Scanalyzed . | . . . . . . Part Schematics Acquired . | . . . . . . Parts Damaged . | . . . . . . Bothacking | -11 -10 -10 -9 -9 -9 ------------ Run | Scr Mat Min Mat Sto Gar Used RIF Installer . | . . . . . . Robots Hacked . | . . . . . . Non-combat . | . . . . . . Combat . | . . . . . . Robot Hacks Applied . | . . . . . . Relay Couplers Released 3 | . . . . . 3 Machine Destruction 3 | . . . . . 3 Robots Rewired . | . . . . . . Allies Hacked . | . . . . . . Hacks Repelled . | . . . . . . Allies | -11 -10 -10 -9 -9 -9 -------- Run | Scr Mat Min Mat Sto Gar Total Allies 3 | . . 3 . . . Largest Group 3 | . . 3 . . . Highest-Rated Group 40 | . . 40 . . . Highest-Rated Ally 16 | . . 16 . . . Total Orders . | . . . . . . Ally Attacks 3 | . . 3 . . . Total Damage 34 | . . 34 . . . Kills . | . . . . . . Allies Corrupted . | . . . . . . Allies Melted . | . . . . . . Intel | -11 -10 -10 -9 -9 -9 ------- Run | Scr Mat Min Mat Sto Gar Robot Analysis Total . | . . . . . . Derelict Logs Recovered . | . . . . . . Drone Launches . | . . . . . . Drone Recoveries . | . . . . . . Exploration | -11 -10 -10 -9 -9 -9 ------------- Run | Scr Mat Min Mat Sto Gar Turns Passed 1573 | 111 397 310 95 449 211 Spaces Moved 1012 | 78 332 232 57 197 116 Core 36 | 35 . . . . 1 Treads . | . . . . . . Legs 54 | . . . . . 54 Wheels 922 | 43 332 232 57 197 61 Hover . | . . . . . . Flight . | . . . . . . Fastest Speed 50 | 50 80 100 93 93 93 Average Speed 98 | 101 90 100 93 93 125 Slowest Speed 550 | 200 100 100 93 93 550 Overloaded Moves . | . . . . . . Propulsion Burnouts . | . . . . . . Robots Hopped . | . . . . . . Cave-ins Triggered . | . . . . . . Exploration Rate (%) 31 | 3 55 62 6 31 30 Regions Visited 5 Branch Regions 2 Pre-discovered Areas . | . . . . . . Known Exits Taken 2 | . . . 1 1 . Unknown Exits Taken 3 | 1 1 1 . . . Scrap Searched 1 | . . 1 . . . Spaces Dug 1 | . 1 . . . . Terrain Destroyed 44 | . 38 . . . 6 Melee . | . . . . . . Projectile 1 | . 1 . . . . AOE 43 | . 37 . . . 6 Actions | -11 -10 -10 -9 -9 -9 --------- Run | Scr Mat Min Mat Sto Gar Total 1483 | 105 404 282 92 447 153 Wait 322 | . 38 32 26 225 1 Move 1008 | 77 331 231 56 197 116 Hop . | . . . . . . Pick Up 41 | 15 12 2 2 7 3 Fast Attach 5 | 4 . . . 1 . Attach 9 | 3 1 1 3 . 1 Detach . | . . . . . . Swap 12 | . 4 1 1 1 5 Drop 22 | 4 6 1 1 7 3 Fire 59 | 2 12 14 3 9 19 Melee . | . . . . . . Ram . | . . . . . . Kick . | . . . . . . Crush . | . . . . . . Escape Stasis 5 | . . . . . 5 Rewire . | . . . . . . Trap . | . . . . . . Miscellaneous . | . . . . . . Route ------- -11/Scrapyard -10/Materials (discovered 2 exits: [*Min x2]) -10/Mines -9/Materials -9/Storage -9/Garrison History --------- Turn | Location | Event 3 | -11/Scrapyard | Discovered new exit (range 16) 112 | -11/Scrapyard | Entered Materials 279 | -10/Materials | Discovered new exit (range 11) 314 | -10/Materials | Build established: Mutant 476 | -10/Materials | Discovered new exit (range 14) 509 | -10/Materials | Entered Mines 510 | -10/Mines | Assembled infested the area 515 | -10/Mines | Met a Derelict bent on vengeance 685 | -10/Mines | Assisted by bots powering up and referring to "LRC-V3" 808 | -10/Mines | Discovered new exit (range 7) 819 | -10/Mines | Entered Materials 819 | -9/Materials | Evolved 2 slots: Propulsion x1, Utility x1 848 | -9/Materials | Discovered new exit (range 16) 910 | -9/Materials | Identified exit to Storage 914 | -9/Materials | Entered Storage 1363 | -9/Storage | Identified exit to Garrison 1363 | -9/Storage | Entered Garrison 1382 | -9/Garrison | Triggered checkpoint 1429 | -9/Garrison | Garrison Relay disabled 1498 | -9/Garrison | Triggered checkpoint 1546 | -9/Garrison | Triggered checkpoint 1572 | -9/Garrison | Core integrity fell below 50% 1574 | -9/Garrison | Self-destructed Last Messages --------------- 01444_ Acquired Relay Coupler [Sentry]. 01445_ Triggered Stasis Trap. 01445_ A bubble of rippling energy engulfs the area. 01445_ Field strength at 85. 01446_ Field strength at 70. 01447_ Field strength at 55. 01448_ Field strength at 40. 01449_ Field strength at 25. 01450_ Field strength at 10. 01451_ Stasis field depleted. 01498_ Beams of light sweep through the air. An alarm sounds. 01500_ ALERT: Garrison interior compromised. 01522_ Lgt. Ion Engine destroyed. 01534_ G-47 Trooper destroyed. 01534_ Switching to secondary target: Y-45 Defender. 01546_ G-34 Mercenary suffers critical hit. 01546_ Destroyed Aluminum Leg. 01546_ Beams of light sweep through the air. An alarm sounds. 01554_ Imp. Assault Rifle destroyed. 01557_ Aluminum Leg destroyed. Map ----- +----------------------------------------------------+ | ??????????????????????????? #????????????????????? | | ??????????????????????????? #????????????????????? | | ?????????????????????????? #????????????????????? | | ?????????????????????????? #????????????????????? | | ?????????????????????????? #????????????????????? | | ?????????????????????????? #????????????????????? | | ?????????????????????????? #????????????????????? | | ?????????????????????????? #????????????????????? | | ??????????????????????????^ #????????????????????? | | ????????????????????????## ^##""""## ##?????????? | | ???????????????# ####### #?????????? | | ???????????????# #?????????? | | ???????????????# ^ #?????????? | | ????????????????######### ## #??? ??????????? | | ??????????????????????###% Y## ## #?????????? | | ??????????????????????# g g ?????????? | | ??????????????????????# g ?????????? | | ??????????????????????# ?????????? | | ??????????????????????# ?????????? | | ??????????????????????### ## ## #?????????? | | ????????????????????????# ## ## #?????????? | | ????????????????????????# Y ????????? | | ????????????????????????# ????????? | | ????????????????????????# #?????????? | | ????????????????????????# ##""""######?????????? | | ????????????????????????#@ #????????????????????? | | ????????????????????????# #????????????????????? | | ????????????????????????# #????????????????????? | | ????????????????????????# #????????????????????? | | ????????????????????????# #????????????????????? | | ????????????????????????# #????????????????????? | | ######################### #????????????????????? | | #????????????????????? | | #????????????????????? | | #????????????????????? | | ################ ###########????????????????????? | | ??????????????# #####??????????????????????????? | | ??????????????# # ### #??????????????????????? | | ??????????????# *[ #??????????????????????? | | ??????????????## #######??????????????????????? | | ??????????????# ###?#??????????????????????????? | | ??????????????## #??????????????????????????????? | | ???????????????# #??????????????????????????????? | | ???????????????# ###????????????????????????????? | | ???????????????#^ #"#????????????????????????????? | | ???????????????# "#????????????????????????????? | | ???????????????# = =#????????????????????????????? | | ???????????????# = "#????????????????????????????? | | ???????????????# #"#????????????????????????????? | | ???????????????# ###????????????????????????????? | +----------------------------------------------------+ Best States ------------- Heat Dissipation 28 Energy Generation 10 Energy Capacity 125 Matter Stores 300 Matter Capacity 300 Sight Range 16 Terrain Scan Density 10 Resistance: KI 20 Resistance: TH 20 Resistance: EX 20 Resistance: EM 20 Resistance: I 20 Resistance: S 20 Resistance: P 20 Evasion (%) 50 Item Schematics ----------------- None Robot Schematics ------------------ None Fabricated ------------ Nothing Alien Tech Used ----------------- None Achievements -------------- None Challenges ------------ None Game ------ Seed GlidesysSigixAirjet Manual? 0 Play Time 00:24:30 Cumulative 66.4 hours Start 2019.11.05 @ 23:21:46 End 2019.11.05 @ 23:44:25 Sessions 1 Manual Loads 0 Difficulty Adventurer Special Mode None Game No. 20 Rogue -18 Adventurer 19 Explorer 1 Win Type - Total 1 Types 1/0/0/0/0/0/0 Lore% 20 Gallery% 44 Achievement% 37 Wizard Run 0 Options --------- ASCII 0 Keyboard 0 Movement Mouse Keybinds 0 Fullscreen 0 Font 20/Terminus Map View 76x50 Tactical HUD 1 Map Filters NONE Filters NONE Steam 1 RUN: f489ab06-ad9c-46c9-a679-d3eeb19aa19a